fUSD/lending_fUSD_20240329
["ID","MTS","AMOUNT","RATE_DAILY","PERIOD"]
[320968772,1711723937136,336.75865443,0.0004283,120]
[320968773,1711723957647,487.28369986,0.0004283,30]
[320968774,1711723967313,290.86465185,0.00023657,10]
[320968775,1711723970020,-4954.13424546,0.00023559,2]
[320968776,1711724003434,297.11577099,0.0004283,30]
[320968777,1711724010103,2917.34131919,0.0004283,120]
[320968778,1711724011917,1267.79525523,0.0004283,120]
[320968779,1711724014662,581.72880282,0.0004283,120]
[320968780,1711724019566,495.97258022,0.0004283,30]
[320968781,1711724023576,2043.30115363,0.0004283,120]
[320968782,1711724025062,214.85985132,0.0004283,120]
[320968783,1711724026546,207.1219675,0.0004283,120]
[320968784,1711724027497,537.13570651,0.0004283,120]
[320968785,1711724028573,325.5919,0.00023559,2]
[320968786,1711724029565,203.11396024,0.0004283,30]
[320968787,1711724031948,690.02220722,0.0004283,120]
[320968788,1711724034443,1141.16411218,0.0004283,120]
[320968789,1711724037664,589.8853,0.00023559,2]
[320968790,1711724039355,152.402122,0.0004283,43]
[320968791,1711724040971,152.402122,0.0004283,43]
[320968792,1711724042181,152.402122,0.0004283,43]
[320968793,1711724044151,315.733853,0.0004283,30]
[320968794,1711724049931,3083.46811386,0.0004283,30]
[320968795,1711724061684,150.0,0.00023559,2]
[320968796,1711724061708,150.0,0.00023559,2]
[320968797,1711724061731,150.0,0.00023559,2]
[320968798,1711724061752,150.0,0.00023559,2]
[320968799,1711724061777,760.59619308,0.00023559,2]
[320968800,1711724069342,927.46308446,0.0004283,120]
[320968801,1711724072211,1071.85590589,0.0004283,120]
[320968804,1711724073474,264.78656639,0.0004283,120]
[320968805,1711724073975,568.52410205,0.0004283,30]
[320968807,1711724074861,2286.23692205,0.0004283,120]
[320968808,1711724074898,2128.68831486,0.0004283,120]
[320968809,1711724075630,867.9406756,0.0004283,120]
[320968810,1711724076009,410.72855238,0.0004283,30]
[320968811,1711724076044,456.03985248,0.0004283,120]
[320968812,1711724076082,455.31706151,0.0004283,30]
[320968813,1711724076616,219.82453892,0.0004283,120]
[320968814,1711724076742,2619.62912111,0.0004283,30]
[320968815,1711724077430,1672.90393026,0.0004283,120]
[320968816,1711724078479,415.43767694,0.0004283,30]
[320968817,1711724079528,756.0,0.0004283,120]
[320968818,1711724080266,844.53015758,0.0004283,120]
[320968820,1711724080484,513.06180125,0.0004283,120]
[320968825,1711724099581,2737.6942,0.00023559,2]
[320968826,1711724103571,150.5,0.0002499,15]
[320968827,1711724104068,150.5,0.0002498,15]
[320968828,1711724104533,150.5,0.0002497,15]
[320968829,1711724104572,183.0,0.0002499,15]
[320968830,1711724112072,632.09816146,0.00023559,2]
[320968831,1711724132639,-189.11542968,0.000249,9]
[320968833,1711724178720,-437.38748594,0.00023556,2]
[320968834,1711724178741,-161.0465,0.00023557,2]
[320968835,1711724207672,531.56601406,0.00023557,2]
[320968836,1711724223278,150.5,0.0002499,15]
[320968837,1711724223841,150.5,0.0002498,15]
[320968838,1711724223904,150.5,0.0002499,15]
[320968839,1711724224306,150.5,0.0002497,15]
[320968840,1711724224393,192.0,0.0002498,15]
[320968841,1711724250545,-245.8500586,0.000249,9]
[320968843,1711724350606,196.68004688,0.000249,9]
[320968849,1711724409265,-156.35449128,0.00023459,2]
[320968850,1711724409290,-4673.64550872,0.00023559,2]
[320968851,1711724464598,150.5,0.0002499,15]
[320968852,1711724465123,150.5,0.0002498,15]
[320968853,1711724496087,157.34403752,0.000249,9]
[320968854,1711724637775,152.402122,0.00042597,43]
[320968855,1711724638790,152.402122,0.00042597,43]
[320968856,1711724738187,-1410.46942982,0.00023559,2]
[320968857,1711724738207,-2441.2477,0.00023559,2]
[320968858,1711724738227,-9346.64495706,0.00023559,2]
[320968859,1711724738247,-2295.18425895,0.00023649,2]
[320968860,1711724738268,-404.66326903,0.00023657,2]
[320968861,1711724738290,-234.63038123,0.00023657,2]
[320968862,1711724738311,-246.1135767,0.00023657,2]
[320968863,1711724738329,-193.61043381,0.00023657,2]
[320968864,1711724738347,-366.81226352,0.00023657,2]
[320968865,1711724738367,-343.13863821,0.00023658,2]
[320968866,1711724738386,-4171.39722441,0.00023658,2]
[320968867,1711724738406,-1000.0,0.00023659,2]
[320968868,1711724738426,-26200.81911608,0.00023659,2]
[320968869,1711724762976,-1126.95386788,0.0003258,28]
[320968870,1711724824430,150.5,0.0002499,15]
[320968871,1711724824555,150.5,0.0002499,15]
[320968872,1711724824970,150.5,0.0002498,15]
[320968873,1711724825048,188.5,0.0002498,15]
[320968874,1711724826323,150.5,0.0002497,15]
[320968875,1711724829092,-1224.53657379,0.00023559,2]
[320968876,1711724829114,-6038.97849669,0.00023659,2]
[320968877,1711724831587,-157.32,0.00032548,15]
[320968878,1711724836124,700.0,0.000244,8]
[320968879,1711724838209,1400.0,0.000245,8]
[320968882,1711724863146,-2176.72389506,0.000247,9]
[320968883,1711724872059,-157.32,0.00035483,15]
[320968884,1711724878258,-723.27610494,0.000247,9]
[320968885,1711724878279,-1453.44779012,0.000248,9]
[320968886,1711724886175,-2146.55220988,0.000248,9]
[320968889,1711724901013,159.16,0.00035033,15]
[320968890,1711724902141,-700.0,0.000249,9]
[320968893,1711724928350,-2200.0,0.000246,8]
[320968897,1711724944421,150.5,0.0002499,15]
[320968898,1711724945146,150.5,0.0002498,15]
[320968899,1711724945863,150.5,0.0002497,15]
[320968900,1711724956104,-1000.0,0.00023559,2]
[320968901,1711724956127,-433.5943255,0.00023559,2]
[320968907,1711725022244,250.0,0.00035705,112]
[320968921,1711725032259,-5.3064941,0.00023559,2]
[320968922,1711725032276,-2061.0991804,0.00023559,2]
[320968923,1711725032285,-3393.10811702,0.00023559,2]
[320968924,1711725032302,-3500.05,0.00023559,2]
[320968925,1711725032335,-1518.01229028,0.00023559,2]
[320968926,1711725032355,-665.02397761,0.00023559,2]
[320968927,1711725032365,-155.0,0.00023658,2]
[320968928,1711725032375,-208.22602241,0.00023659,2]
[320968929,1711725033464,-1031.625,0.00023559,2]
[320968999,1711725038252,-872.88442371,0.00023559,2]
[320969001,1711725038262,-987.07012179,0.00023659,2]
[320969002,1711725038274,-77080.48605862,0.00023659,2]
[320969003,1711725038321,-134484.42018441,0.00023659,2]
[320969004,1711725038330,-155063.9907,0.00023659,2]
[320969005,1711725038339,-153.26008284,0.000249,2]
[320969006,1711725038349,-156.35449127,0.000249,2]
[320969007,1711725038358,-150.83371739,0.000249,2]
[320969008,1711725038366,-175.15679166,0.000249,2]
[320969009,1711725038375,-437.79012118,0.000249,2]
[320969010,1711725038429,-219.68856628,0.000249,2]
[320969011,1711725038438,-580.89564473,0.000249,2]
[320969012,1711725038447,-237.36713816,0.000249,2]
[320969013,1711725038457,-1663.83985323,0.000249,2]
[320969014,1711725038466,-305.46646837,0.00024999,2]
[320969015,1711725038475,-265.26654513,0.00024999,2]
[320969016,1711725038483,-166.28115449,0.00024999,2]
[320969017,1711725038493,-4375.03148269,0.00024999,2]
[320969018,1711725038502,-155.43594337,0.00024999,2]
[320969019,1711725038511,-3220152.32300942,0.00025,2]
[320969020,1711725038521,-4213003.11442272,0.00025,2]
[320969021,1711725038535,-53447.91797949,0.00025,2]
[320969022,1711725038544,-158.0,0.00025,2]
[320969023,1711725038553,-230.18,0.00025,2]
[320969024,1711725038562,-156.7,0.00025,2]
[320969025,1711725038572,-3108.47569485,0.000251,2]
[320969026,1711725038582,-150.99,0.000251,2]
[320969027,1711725038591,-9076.19438483,0.00026471,2]
[320969028,1711725038599,-499.99,0.00027326,2]
[320969029,1711725038608,-150.83371738,0.00029344,2]
[320969030,1711725038618,-9076.19438483,0.00029382,2]
[320969031,1711725038627,-250.0,0.00029925,2]
[320969032,1711725038636,-670.53,0.00030329,2]
[320969033,1711725038645,-9076.19438483,0.00032294,2]
[320969035,1711725038654,-250.0,0.00033,3]
[320969037,1711725038663,-206.74,0.00033715,2]
[320969039,1711725038672,-150.83371738,0.00033789,2]
[320969041,1711725038681,-9039.47106703,0.000348,4]
[320969043,1711725038690,-156.7,0.000348,2]
[320969045,1711725038699,-1279.15951777,0.00035,4]
[320969047,1711725038708,-300.0,0.00035,3]
[320969049,1711725038717,-230.18,0.00035,2]
[320969051,1711725038726,-9076.19438483,0.00035205,2]
[320969053,1711725038736,-1000.0,0.00035279,2]
[320969055,1711725038745,-258.71,0.00035633,2]
[320969057,1711725038754,-206.74,0.00035979,2]
[320969059,1711725038764,-387.73096268,0.00036786,2]
[320969061,1711725038773,-437.79012118,0.0003685,2]
[320969063,1711725038784,-580.89564472,0.0003685,2]
[320969065,1711725038797,-237.36713815,0.0003685,2]
[320969067,1711725038806,-1663.83985321,0.0003685,2]
[320969069,1711725038815,-350.0,0.00037,3]
[320969071,1711725038824,-153.26008282,0.00037571,10]
[320969073,1711725038835,-158.0,0.000379,7]
[320969075,1711725038844,-159.16,0.00037969,15]
[320969077,1711725038853,-9076.19438483,0.00038117,2]
[320969079,1711725038861,-150.83371738,0.00038233,2]
[320969081,1711725038870,-206.74,0.00038243,2]
[320969083,1711725038880,-400.0,0.00039,3]
[320969085,1711725038890,-156.7,0.00039,7]
[320969087,1711725038899,-1000.0,0.00039689,2]
[320969089,1711725038908,-387.73096268,0.00039757,2]
[320969091,1711725038916,-1000.0,0.0004,20]
[320969093,1711725038925,-168.90015724,0.0004,7]
[320969095,1711725038935,-496.70180918,0.0004,120]
[320969097,1711725038944,-206.74,0.00040507,2]
[320969099,1711725038953,-230.18,0.000406,7]
[320969101,1711725038962,-159.16,0.00040904,15]
[320969103,1711725038971,-450.0,0.00041,3]
[320969105,1711725038980,-1224.53657376,0.00041028,2]
[320969107,1711725038990,-9076.19438483,0.00041028,2]
[320969109,1711725038999,-385.0,0.000415,3]
[320969111,1711725039009,-670.53,0.00041562,2]
[320969113,1711725039018,-2084.0,0.00042,2]
[320969115,1711725039027,-2792.27764039,0.00042,2]
[320969117,1711725039038,-302.59116502,0.0004248,10]
[320969119,1711725039046,-261.85550193,0.0004248,57]
[320969121,1711725039055,-4765.34784761,0.00042561,7]
[320969123,1711725039064,-61671.89130303,0.00042561,2]
[320969125,1711725039073,-3208.84640533,0.00042561,2]
[320969127,1711725039082,-7524.31919112,0.00042561,7]
[320969129,1711725039091,-2988.0,0.00042561,10]
[320969130,1711725039100,-2595.65446299,0.00042561,2]
[320969131,1711725039109,-6065.93291967,0.00042561,2]
[320969132,1711725039118,-24395.96297285,0.00042561,2]
[320969133,1711725039127,-156.09764906,0.00042561,2]
[320969134,1711725039136,-479.24787887,0.00042561,2]
[320969135,1711725039146,-1968393.52750829,0.00042561,7]
[320969136,1711725039155,-546.05776749,0.00042561,2]
[320969137,1711725039164,-1212.37263975,0.00042561,2]
[320969138,1711725039174,-5366.40429486,0.00042561,2]
[320969139,1711725039184,-17341.66668682,0.00042561,7]
[320969140,1711725039194,-37768.92996314,0.00042561,2]
[320969141,1711725039203,-1065.12026545,0.00042561,7]
[320969142,1711725039212,-379002.63472488,0.00042561,2]
[320969143,1711725039222,-88615.94705877,0.00042561,7]
[320969144,1711725039231,-510.12705489,0.00042561,7]
[320969145,1711725039241,-432528.10731921,0.00042561,2]
[320969146,1711725039250,-518.0,0.0004258,30]
[320969147,1711725039259,-300.0,0.00042596,10]
[320969148,1711725039268,-150.83371738,0.00042678,16]
[320969149,1711725039277,-387.73096268,0.00042729,2]
[320969150,1711725039288,-206.74,0.00042771,2]
[320969151,1711725039297,-269.02058092,0.0004283,4]
[320969152,1711725039305,-700.0,0.000429,15]
[320969153,1711725039314,-156.7,0.000429,7]
[320969154,1711725039323,-500.0,0.00043,3]
[320969155,1711725039332,-159.16,0.00043839,15]
[320969156,1711725039340,-1010.41481517,0.00043881,30]
[320969157,1711725039349,-230.18,0.000439,7]
[320969158,1711725039358,-1224.53657376,0.0004394,2]
[320969159,1711725039367,-9076.19438483,0.0004394,2]
[320969160,1711725039376,-3032.60583471,0.00044,14]
[320969161,1711725039385,-1000.0,0.00044099,2]
[320969162,1711725039394,-261.85550189,0.0004482,65]
[320969163,1711725039404,-5000.0,0.00044986,4]
[320969164,1711725039413,-409.30827016,0.00045,4]
[320969165,1711725039422,-550.0,0.00045,3]
[320969166,1711725039431,-206.74,0.00045035,2]
[320969167,1711725039440,-158.0,0.000454,7]
[320969168,1711725039449,-387.73096268,0.000457,2]
[320969169,1711725039458,-159.16,0.00046775,15]
[320969170,1711725039467,-1224.53657376,0.00046851,2]
[320969171,1711725039476,-9076.19438483,0.00046851,2]
[320969172,1711725039486,-3200.0,0.00047,4]
[320969173,1711725039495,-348.4943153,0.00047,120]
[320969174,1711725039504,-2093.79096194,0.00047,7]
[320969175,1711725039513,-600.0,0.00047,3]
[320969176,1711725039522,-150.83371738,0.00047122,33]
[320969177,1711725039533,-261.85550189,0.0004716,74]
[320969178,1711725039542,-206.74,0.00047299,2]
[320969179,1711725039551,-156.7,0.000473,7]
[320969180,1711725039560,-209.56666667,0.00048,120]
[320969181,1711725039569,-522.0,0.0004822,30]
[320969182,1711725039578,-522.0,0.00048494,30]
[320969183,1711725039587,-810.65541613,0.000485,120]
[320969184,1711725039595,-501.5629329,0.000485,30]
[320969185,1711725039604,-1000.0,0.00048509,2]
[320969186,1711725039612,-209.56666667,0.00048603,120]
[320969187,1711725039621,-387.73096268,0.00048671,2]
[320969188,1711725039630,-230.18,0.000487,7]
[320969189,1711725039638,-524.0,0.00048767,30]
[320969190,1711725039647,-175.15679165,0.000488,2]
[320969191,1711725039656,-437.79012118,0.000488,2]
[320969192,1711725039665,-580.89564472,0.000488,2]
[320969193,1711725039674,-237.36713815,0.000488,2]
[320969194,1711725039682,-204.61,0.00048859,15]
[320969195,1711725039691,-150.5,0.00048869,15]
[320969196,1711725039700,-17579.58771897,0.00048877,2]
[320969197,1711725039709,-330.33520594,0.00048879,30]
[320969198,1711725039717,-150.0,0.00048879,30]
[320969199,1711725039727,-3245981.86560771,0.0004888,2]
[320969200,1711725039736,-700.0,0.000489,17]
[320969201,1711725039745,-154.44633834,0.00048922,30]
[320969202,1711725039754,-153.29621667,0.0004897,30]
[320969203,1711725039763,-1940.0,0.00049,120]
[320969204,1711725039772,-41048.34043121,0.00049,2]
[320969205,1711725039782,-650.0,0.00049,3]
[320969206,1711725039792,-157.032907,0.00049153,101]
[320969207,1711725039801,-157.032907,0.00049173,103]
[320969208,1711725039814,-157.032907,0.00049193,105]
[320969209,1711725039824,-157.032907,0.00049203,106]
[320969210,1711725039834,-209.56666667,0.00049205,120]
[320969211,1711725039844,-314.065814,0.00049213,108]
[320969212,1711725039854,-150.0,0.00049314,30]
[320969213,1711725039863,-600.0,0.00049315,120]
[320969214,1711725039872,-500.0,0.00049315,120]
[320969215,1711725039882,-500.0,0.00049315,120]
[320969216,1711725039894,-500.0,0.00049315,120]
[320969217,1711725039903,-500.0,0.00049315,120]
[320969218,1711725039913,-500.0,0.00049315,120]
[320969219,1711725039922,-515.95559442,0.00049315,120]
[320969220,1711725039931,-500.0,0.00049315,120]
[320969222,1711725039940,-517.14097579,0.00049315,120]
[320969224,1711725039950,-500.0,0.00049315,120]
[320969226,1711725039959,-500.0,0.00049315,120]
[320969228,1711725039968,-500.0,0.00049315,120]
[320969229,1711725039977,-500.0,0.00049315,120]
[320969230,1711725039988,-500.0,0.00049315,120]
[320969231,1711725039997,-500.0,0.00049315,120]
[320969232,1711725040006,-510.42236014,0.00049315,120]
[320969233,1711725040015,-500.0,0.00049315,120]
[320969234,1711725040025,-500.0,0.00049315,120]
[320969235,1711725040036,-500.0,0.00049315,120]
[320969236,1711725040045,-500.0,0.00049315,120]
[320969237,1711725040054,-500.0,0.00049315,120]
[320969239,1711725040064,-498.41178407,0.00049315,120]
[320969241,1711725040074,-500.0,0.00049315,120]
[320969243,1711725040083,-500.0,0.00049315,120]
[320969245,1711725040092,-500.0,0.00049315,120]
[320969247,1711725040102,-500.0,0.00049315,120]
[320969249,1711725040112,-500.0,0.00049315,120]
[320969251,1711725040121,-500.0,0.00049315,120]
[320969254,1711725040131,-500.0,0.00049315,120]
[320969256,1711725040140,-500.0,0.00049315,120]
[320969259,1711725040150,-590.16029371,0.00049315,120]
[320969261,1711725040159,-499.95,0.00049315,120]
[320969264,1711725040168,-500.0,0.00049315,120]
[320969267,1711725040178,-511.84386231,0.00049315,120]
[320969270,1711725040187,-500.0,0.00049315,120]
[320969273,1711725040196,-500.0,0.00049315,120]
[320969276,1711725040206,-500.0,0.00049315,120]
[320969279,1711725040214,-500.0,0.00049315,120]
[320969282,1711725040224,-500.0,0.00049315,120]
[320969285,1711725040233,-500.0,0.00049315,120]
[320969288,1711725040242,-500.0,0.00049315,120]
[320969291,1711725040251,-500.0,0.00049315,120]
[320969294,1711725040260,-500.0,0.00049315,120]
[320969297,1711725040269,-500.0,0.00049315,120]
[320969300,1711725040278,-500.0,0.00049315,120]
[320969303,1711725040288,-631.70053398,0.00049315,120]
[320969305,1711725040297,-500.0,0.00049315,120]
[320969308,1711725040305,-500.0,0.00049315,120]
[320969310,1711725040314,-505.09281915,0.00049315,120]
[320969312,1711725040323,-500.0,0.00049315,120]
[320969314,1711725040332,-500.0,0.00049315,120]
[320969315,1711725040341,-502.24784874,0.00049315,120]
[320969316,1711725040350,-500.0,0.00049315,120]
[320969317,1711725040359,-500.0,0.00049315,120]
[320969318,1711725040368,-500.0,0.00049315,120]
[320969319,1711725040377,-500.0,0.00049315,120]
[320969320,1711725040386,-500.0,0.00049315,120]
[320969321,1711725040395,-500.0,0.00049315,120]
[320969323,1711725040404,-500.0,0.00049315,120]
[320969325,1711725040413,-500.0,0.00049315,120]
[320969327,1711725040422,-500.0,0.00049315,120]
[320969329,1711725040431,-500.0,0.00049315,120]
[320969331,1711725040440,-500.0,0.00049315,120]
[320969333,1711725040449,-500.0,0.00049315,120]
[320969335,1711725040458,-500.0,0.00049315,120]
[320969337,1711725040467,-500.0,0.00049315,120]
[320969339,1711725040477,-500.0,0.00049315,120]
[320969342,1711725040486,-500.0,0.00049315,120]
[320969344,1711725040495,-505.98959203,0.00049315,120]
[320969346,1711725040504,-500.0,0.00049315,120]
[320969347,1711725040514,-500.0,0.00049315,120]
[320969350,1711725040523,-500.0,0.00049315,120]
[320969352,1711725040533,-450.0,0.00049315,120]
[320969353,1711725040542,-500.0,0.00049315,120]
[320969355,1711725040551,-500.0,0.00049315,120]
[320969357,1711725040560,-500.0,0.00049315,120]
[320969359,1711725040568,-500.0,0.00049315,120]
[320969361,1711725040577,-500.0,0.00049315,120]
[320969363,1711725040586,-1525.54272011,0.00049315,2]
[320969365,1711725040594,-579.13018357,0.00049315,120]
[320969367,1711725040603,-500.0,0.00049315,120]
[320969369,1711725040612,-500.0,0.00049315,120]
[320969371,1711725040621,-500.0,0.00049315,120]
[320969373,1711725040629,-500.0,0.00049315,120]
[320969375,1711725040638,-500.0,0.00049315,120]
[320969377,1711725040647,-500.0,0.00049315,120]
[320969379,1711725040656,-500.0,0.00049315,120]
[320969381,1711725040665,-500.0,0.00049315,120]
[320969383,1711725040674,-500.0,0.00049315,120]
[320969385,1711725040683,-500.0,0.00049315,120]
[320969387,1711725040692,-500.0,0.00049315,120]
[320969389,1711725040701,-500.0,0.00049315,120]
[320969391,1711725040710,-500.0,0.00049315,120]
[320969393,1711725040719,-511.92746397,0.00049315,120]
[320969395,1711725040728,-500.0,0.00049315,120]
[320969397,1711725040737,-510.05,0.00049315,120]
[320969399,1711725040746,-507.32838069,0.00049315,120]
[320969401,1711725040756,-500.0,0.00049315,120]
[320969403,1711725040765,-500.0,0.00049315,120]
[320969405,1711725040774,-500.0,0.00049315,120]
[320969407,1711725040784,-500.0,0.00049315,120]
[320969409,1711725040795,-500.0,0.00049315,120]
[320969411,1711725040806,-500.0,0.00049315,120]
[320969413,1711725040815,-500.0,0.00049315,120]
[320969415,1711725040825,-500.0,0.00049315,120]
[320969418,1711725040834,-216.33229569,0.00049315,120]
[320969421,1711725040845,-500.0,0.00049315,120]
[320969423,1711725040855,-500.0,0.00049315,120]
[320969426,1711725040866,-507.77355095,0.00049315,120]
[320969428,1711725040874,-500.0,0.00049315,120]
[320969430,1711725040885,-500.0,0.00049315,120]
[320969431,1711725040896,-500.0,0.00049315,120]
[320969435,1711725040906,-500.0,0.00049315,120]
[320969437,1711725040915,-547.86,0.00049315,120]
[320969440,1711725040925,-514.49526278,0.00049315,120]
[320969443,1711725040934,-500.0,0.00049315,120]
[320969445,1711725040943,-643.61,0.00049315,120]
[320969448,1711725040953,-504.78649914,0.00049315,120]
[320969450,1711725040962,-500.0,0.00049315,120]
[320969452,1711725040971,-500.0,0.00049315,120]
[320969454,1711725040982,-500.0,0.00049315,120]
[320969456,1711725040991,-531.62765695,0.00049315,120]
[320969458,1711725041001,-500.0,0.00049315,120]
[320969460,1711725041010,-500.0,0.00049315,120]
[320969462,1711725041020,-500.0,0.00049315,120]
[320969464,1711725041030,-500.0,0.00049315,120]
[320969466,1711725041039,-500.0,0.00049315,120]
[320969468,1711725041049,-505.73074302,0.00049315,120]
[320969470,1711725041058,-500.0,0.00049315,120]
[320969472,1711725041067,-500.0,0.00049315,120]
[320969474,1711725041077,-500.0,0.00049315,120]
[320969476,1711725041086,-500.0,0.00049315,120]
[320969478,1711725041095,-500.0,0.00049315,120]
[320969480,1711725041105,-500.0,0.00049315,120]
[320969482,1711725041114,-490.25551889,0.00049315,120]
[320969484,1711725041123,-500.0,0.00049315,120]
[320969486,1711725041132,-500.0,0.00049315,120]
[320969488,1711725041142,-500.0,0.00049315,120]
[320969490,1711725041151,-520.77934344,0.00049315,30]
[320969492,1711725041160,-504.64535022,0.00049315,120]
[320969493,1711725041170,-500.0,0.00049315,120]
[320969494,1711725041179,-500.0,0.00049315,120]
[320969495,1711725041188,-500.0,0.00049315,120]
[320969496,1711725041198,-500.0,0.00049315,120]
[320969497,1711725041207,-500.0,0.00049315,120]
[320969498,1711725041217,-500.0,0.00049315,120]
[320969499,1711725041226,-500.0,0.00049315,120]
[320969500,1711725041235,-500.0,0.00049315,120]
[320969501,1711725041245,-500.0,0.00049315,120]
[320969502,1711725041254,-500.0,0.00049315,120]
[320969503,1711725041263,-500.0,0.00049315,120]
[320969504,1711725041273,-500.0,0.00049315,120]
[320969505,1711725041284,-500.0,0.00049315,120]
[320969506,1711725041293,-500.0,0.00049315,120]
[320969507,1711725041302,-500.0,0.00049315,120]
[320969508,1711725041312,-500.0,0.00049315,120]
[320969509,1711725041321,-506.40925648,0.00049315,120]
[320969510,1711725041330,-538.26,0.00049315,120]
[320969511,1711725041340,-511.00564677,0.00049315,120]
[320969512,1711725041349,-500.0,0.00049315,120]
[320969513,1711725041358,-500.0,0.00049315,120]
[320969514,1711725041367,-508.74914991,0.00049315,120]
[320969515,1711725041376,-500.0,0.00049315,120]
[320969516,1711725041386,-500.0,0.00049315,120]
[320969517,1711725041396,-500.0,0.00049315,120]
[320969518,1711725041405,-500.0,0.00049315,120]
[320969519,1711725041415,-500.0,0.00049315,120]
[320969520,1711725041425,-500.0,0.00049315,120]
[320969521,1711725041435,-500.0,0.00049315,120]
[320969522,1711725041444,-500.0,0.00049315,120]
[320969523,1711725041454,-503.57582157,0.00049315,120]
[320969524,1711725041463,-648.48,0.00049315,120]
[320969525,1711725041472,-521.84836123,0.00049315,120]
[320969526,1711725041481,-500.0,0.00049315,120]
[320969527,1711725041491,-524.85619626,0.00049315,120]
[320969528,1711725041500,-500.0,0.00049315,120]
[320969529,1711725041510,-500.0,0.00049315,120]
[320969530,1711725041519,-500.0,0.00049315,120]
[320969531,1711725041529,-530.89,0.00049315,120]
[320969532,1711725041539,-506.10844265,0.00049315,120]
[320969533,1711725041549,-517.13258648,0.00049315,120]
[320969534,1711725041558,-500.0,0.00049315,120]
[320969535,1711725041569,-500.0,0.00049315,120]
[320969536,1711725041578,-500.0,0.00049315,120]
[320969537,1711725041588,-509.02693485,0.00049315,120]
[320969538,1711725041597,-500.0,0.00049315,120]
[320969539,1711725041608,-504.52423416,0.00049315,120]
[320969540,1711725041617,-500.0,0.00049315,120]
[320969541,1711725041626,-500.0,0.00049315,120]
[320969542,1711725041636,-500.0,0.00049315,120]
[320969543,1711725041646,-500.0,0.00049315,120]
[320969544,1711725041655,-500.0,0.00049315,120]
[320969545,1711725041665,-500.0,0.00049315,120]
[320969546,1711725041674,-500.0,0.00049315,120]
[320969547,1711725041683,-500.0,0.00049315,120]
[320969548,1711725041692,-500.0,0.00049315,120]
[320969549,1711725041701,-500.0,0.00049315,120]
[320969550,1711725041711,-500.0,0.00049315,120]
[320969551,1711725041721,-500.0,0.00049315,120]
[320969552,1711725041730,-500.0,0.00049315,120]
[320969553,1711725041740,-500.0,0.00049315,120]
[320969554,1711725041749,-500.0,0.00049315,120]
[320969555,1711725041759,-500.0,0.00049315,120]
[320969556,1711725041768,-521.33336247,0.00049315,120]
[320969557,1711725041778,-241.40336922,0.00049315,120]
[320969558,1711725041789,-514.81760282,0.00049315,120]
[320969559,1711725041799,-500.0,0.00049315,120]
[320969560,1711725041809,-500.0,0.00049315,120]
[320969561,1711725041818,-500.0,0.00049315,120]
[320969562,1711725041827,-504.03681446,0.00049315,120]
[320969563,1711725041837,-500.0,0.00049315,120]
[320969564,1711725041847,-500.0,0.00049315,120]
[320969565,1711725041856,-500.0,0.00049315,120]
[320969566,1711725041865,-500.0,0.00049315,120]
[320969567,1711725041875,-500.0,0.00049315,120]
[320969568,1711725041885,-500.0,0.00049315,120]
[320969569,1711725041895,-512.15052871,0.00049315,120]
[320969570,1711725041904,-500.0,0.00049315,120]
[320969571,1711725041913,-500.0,0.00049315,120]